Cogmind - Beta 14 @@@ ROGUE MODE // 2024.12.14 @ 20:48:34 Player: Zoe Result: Destroyed by D-53 Grenadier with Mini Grenade Launcher Performance ------------- Evolutions (0) 0 Regions Visited (4) 800 Robots Destroyed (7) 35 Value Destroyed (141) 141 Prototype IDs (0) 0 Alien Tech Used (0) 0 Bonus (300) 300 TOTAL SCORE: 1276 Bonus ------- Aligned with FarCom 300 Cogmind --------- Core Integrity 0/250 Matter 293/300 Energy 100/100 System Corruption 8% Temperature Cool (0) Movement Core (700) Ox13 Location -9/Mines Parts ------- > --- POWER (1) -------- (None) > --- PROPULSION (2) --- (None) > --- UTILITY (2) ------ Large Storage Unit Large Storage Unit > --- WEAPON (2) ------- Light Assault Rifle > --- INVENTORY (15) --- Light Ion Engine Light Treads Light Treads Wheel Wheel EM Shotgun Medium Laser Rocket Launcher Peak State ------------ > --- POWER ------------ Light Angular Momentum Engine > --- PROPULSION ------- Aluminum Leg Aluminum Leg > --- UTILITY ---------- Large Storage Unit Targeting Computer > --- WEAPON ----------- Light Assault Rifle Light Assault Rifle > --- INVENTORY -------- Light Ion Engine Light Treads Light Treads Aluminum Leg Aluminum Leg Wheel Wheel Large Storage Unit EM Pulse Gun EM Shotgun Medium Laser Rocket Launcher [Rating: 12] Favorites ----------- Power Light Ion Engine Engine Light Ion Engine Propulsion Aluminum Leg Treads Light Treads Leg Aluminum Leg Utility Targeting Computer Storage Large Storage Unit Processor Targeting Computer Weapon Light Assault Rifle Energy Gun EM Pulse Gun Ballistic Gun Light Assault Rifle Build | -11 -10 -10 -10 -9 ------- Run | Yrd Mat Min Exi Min Slots Evolved . | . . . . . Power . | . . . . . Propulsion . | . . . . . Utility . | . . . . . Weapon . | . . . . . Parts Attached 21 | 6 4 2 1 8 Power 4 | 1 . . 1 2 Engine 4 | 1 . . 1 2 Core . | . . . . . Reactor . | . . . . . Propulsion 8 | 2 . 2 . 4 Treads 2 | 2 . . . . Leg 6 | . . 2 . 4 Wheel . | . . . . . Hover . | . . . . . Flight . | . . . . . Utility 4 | 1 2 . . 1 Device . | . . . . . Storage 3 | 1 1 . . 1 Processor 1 | . 1 . . . Hackware . | . . . . . Protection . | . . . . . Artifact . | . . . . . Weapon 5 | 2 2 . . 1 Energy Gun 2 | 1 . . . 1 Energy Cannon . | . . . . . Ballistic Gun 3 | 1 2 . . . Ballistic Cannon . | . . . . . Launcher . | . . . . . Special Weapon . | . . . . . Impact Weapon . | . . . . . Slashing Weapon . | . . . . . Piercing Weapon . | . . . . . Special Melee Weapon . | . . . . . Unidentified Prototypes . | . . . . . Parts Lost 9 | . . . . 9 Power 2 | . . . . 2 Propulsion 4 | . . . . 4 Utility 1 | . . . . 1 Weapon 2 | . . . . 2 Highest Loss Streak 4 | . . . . 4 To Critical Strikes . | . . . . . Average Slot Usage (%) 98 | . 96 99 100 94 Engine 13 | . 14 14 14 12 Treads 6 | . 28 12 . . Leg 20 | . . 15 28 25 Storage 14 | . 14 14 14 15 Processor 13 | . 10 14 14 12 Energy Gun 1 | . 6 . . 1 Ballistic Gun 26 | . 21 28 28 26 Peak Build Rating 12 | 6 7 8 8 12 Average Rating 7 | 4 6 7 8 8 On Entrance 5 | . 6 7 8 8 Naked Turns . | . . . . . Heaviest Build 52 | 12 25 25 25 52 Greatest Support 40 | 40 40 40 20 20 Greatest Overweight (x) 9 | . . 1 1 9 Average Overweight (x) . | . . . 1 1 Largest Inventory Capacity 15 | 8 15 15 15 15 Average Capacity 14 | 7 9 15 15 15 Most Carried 14 | 6 8 12 13 14 Average Carried 10 | 4 6 10 12 11 Final Capacity 15 | 8 15 15 15 15 Final Carried 12 | 6 8 12 12 8 Class Distribution -------------------- 97% | Mutant Dominant Class ---------------- Mutant | -10/Materials Mutant | -10/Mines Mutant | -10/Exiles Mutant | -9/Mines Resources | -11 -10 -10 -10 -9 ----------- Run | Yrd Mat Min Exi Min Matter Collected 464 | 171 70 121 . 102 Remotely . | . . . . . Salvage Created 263 | . 82 86 . 95 Parts 13 | . 9 4 . . Haulers Intercepted . | . . . . . Recyclers Shooed . | . . . . . Parts Field Recycled . | . . . . . Retrieved Matter . | . . . . . Parts Self-Destructed . | . . . . . Prevented . | . . . . . Kills | -11 -10 -10 -10 -9 ------- Run | Yrd Mat Min Exi Min Combat Hostiles Destroyed 13 | . 5 2 . 6 Guns 13 | . 5 2 . 6 Classes Destroyed 3 | . 1 1 . 1 Swarmer 5 | . 5 . . . Grunt 2 | . . 2 . . Assembled 6 | . . . . 6 Best Kill Streak 4 | . 3 2 . 4 Combat Bots Only 4 | . 3 2 . 4 Max Kills in Single Turn 2 | . 2 1 . 1 Gunslinging 1 | . 1 . . . Exploded . | . . . . . Melee . | . . . . . Uniques/NPCs Destroyed . | . . . . . Combat | -11 -10 -10 -10 -9 -------- Run | Yrd Mat Min Exi Min Hostile Shots Fired 105 | . 39 7 . 59 Missed 32 | . 11 2 . 19 Damage Taken 1128 | . 219 57 . 852 Core 252 | . 70 11 . 171 Absorbed by Shields . | . . . . . Core Remaining (%) 100 | 100 . . . . Volleys Fired 50 | . 13 6 . 31 Largest 2 | . 2 2 . 2 Hottest 60 | . 60 40 . 60 Shots Fired 94 | . 26 12 . 56 Gun 94 | . 26 12 . 56 Cannon . | . . . . . Launcher . | . . . . . Special . | . . . . . Kinetic 89 | . 22 12 . 55 Thermal . | . . . . . Explosive . | . . . . . Electromagnetic 5 | . 4 . . 1 Robot Hit Streak 6 | . 5 6 . 3 Robot Miss Streak 5 | . 5 3 . 3 Penetration Max . | . . . . . Secondary Targets 2 | . 1 . . 1 Max Gunslinging Chain 1 | . 1 . . 1 Shots Hit Robots 47 | . 10 6 . 31 Core Hits 31 | . 5 7 . 19 Critical Kills . | . . . . . Critical Parts Destroyed . | . . . . . Critical Strikes . | . . . . . Melee Attacks . | . . . . . Impact . | . . . . . Slashing . | . . . . . Piercing . | . . . . . Sneak Attacks . | . . . . . Combat Hostiles . | . . . . . Follow-up Attacks . | . . . . . Damage Inflicted 419 | . 95 75 . 249 Guns 419 | . 95 75 . 249 Cannons . | . . . . . Explosions . | . . . . . Melee . | . . . . . Ramming . | . . . . . Kinetic 398 | . 74 75 . 249 Thermal . | . . . . . Explosive . | . . . . . Electromagnetic 21 | . 21 . . . Impact . | . . . . . Slashing . | . . . . . Piercing . | . . . . . Highest Corruption 8 | . . . . 8 Average Corruption 7 | . . . . 7 Corruption Purged . | . . . . . Corruption Blocked . | . . . . . Effects 4 | . . . . 4 Energy Discharges 1 | . . . . 1 Parts Rejected 1 | . . . . 1 Weapon Failures 2 | . . . . 2 Overload Shots . | . . . . . Overflow Damage . | . . . . . Projectiles . | . . . . . Explosions . | . . . . . Melee . | . . . . . Knockbacks . | . . . . . Impact . | . . . . . Kinetic . | . . . . . Secondary . | . . . . . Self-Inflicted Damage . | . . . . . Shots . | . . . . . Rammed . | . . . . . Targets Rammed . | . . . . . Kicked . | . . . . . Crushed . | . . . . . Highest Temperature 60 | . . 12 . 60 Average Temperature 12 | . . 9 . 13 Received Heat Transfer 216 | . . 36 . 180 Siege Activations . | . . . . . Robots Corrupted . | . . . . . Combat Hostiles . | . . . . . Parts Fried . | . . . . . Impact Corruptions . | . . . . . Robots Melted . | . . . . . Combat Hostiles . | . . . . . Parts Melted . | . . . . . Heat Transferred . | . . . . . Parts Sabotaged . | . . . . . Parts Stolen . | . . . . . Parts Stripped . | . . . . . Power Chain Reactions . | . . . . . Alert | -11 -10 -10 -10 -9 ------- Run | Yrd Mat Min Exi Min Peak Influence 125 | . 125 98 . . Initial 48 | . . 48 . . Average 31 | . 56 42 . . Maximum Alert Level . | . . . . . Low Security (%) 100 | 100 100 100 . 100 Level 1 . | . . . . . Level 2 . | . . . . . Level 3 . | . . . . . Level 4 . | . . . . . Level 5 . | . . . . . High Security . | . . . . . Max Security . | . . . . . Squads Dispatched 1 | . 1 . . . Investigation . | . . . . . Extermination . | . . . . . Reinforcement 1 | . 1 . . . Assault . | . . . . . Garrison . | . . . . . Intercept . | . . . . . Searches Triggered . | . . . . . Construction Impeded . | . . . . . Haulers Reinforced . | . . . . . Active Scanning Responses . | . . . . . Cargo Convoy Interrupts . | . . . . . Stealth | -11 -10 -10 -10 -9 --------- Run | Yrd Mat Min Exi Min Distress Signals . | . . . . . Communications Jammed . | . . . . . Distress Signals . | . . . . . Times Spotted 22 | . 7 2 . 13 Peak Tracking Total 7 | . 3 2 . 7 Tactical Retreats 5 | . . . . 5 Traps | -11 -10 -10 -10 -9 ------- Run | Yrd Mat Min Exi Min Traps Triggered . | . . . . . Indirectly . | . . . . . Trap Hack Attempts . | . . . . . Triggered . | . . . . . Disarmed 6 | . 6 . . . Reprogrammed . | . . . . . Reused . | . . . . . Traps Extracted . | . . . . . Installed . | . . . . . Triggered . | . . . . . Machines | -11 -10 -10 -10 -9 ---------- Run | Yrd Mat Min Exi Min Machines Disabled 1 | . 1 . . . Max in Single Turn 1 | . 1 . . . Machines Repaired . | . . . . . Machines Dismantled . | . . . . . Machines Sabotaged . | . . . . . Overloaded Fab Kills . | . . . . . Hacking | -11 -10 -10 -10 -9 --------- Run | Yrd Mat Min Exi Min Machines Accessed 3 | . 2 . 1 . Terminals 2 | . 2 . . . Fabricators . | . . . . . Repair Stations . | . . . . . Recycling Units . | . . . . . Scanalyzers . | . . . . . Garrison Access . | . . . . . Total Hacks 11 | . 2 . 9 . Successful 11 | . 2 . 9 . Failed . | . . . . . Catastrophic . | . . . . . Database Lockouts . | . . . . . Manual . | . . . . . Terminals 2 | . 2 . . . Fabricators . | . . . . . Repair Stations . | . . . . . Recycling Units . | . . . . . Scanalyzers . | . . . . . Garrison Access . | . . . . . Terminal Hacks 11 | . 2 . 9 . Record 9 | . . . 9 . Emergency Access Points 1 | . 1 . . . Disarm Traps 1 | . 1 . . . Fabricator Hacks . | . . . . . Repair Station Hacks . | . . . . . Recycling Unit Hacks . | . . . . . Scanalyzer . | . . . . . Garrison Access Hacks . | . . . . . Unauthorized Hacks . | . . . . . Terminals . | . . . . . Fabricators . | . . . . . Repair Stations . | . . . . . Recycling Units . | . . . . . Scanalyzers . | . . . . . Garrison Access . | . . . . . Data Cores Recovered . | . . . . . Used . | . . . . . Hacking Detections . | . . . . . Full Trace Events . | . . . . . Feedback Events . | . . . . . Feedback Blocked . | . . . . . Robot Schematics Acquired . | . . . . . Robots Built . | . . . . . Authchips . | . . . . . Time . | . . . . . Total Robot Build Rating . | . . . . . Part Schematics Acquired . | . . . . . Parts Built . | . . . . . Authchips . | . . . . . Time . | . . . . . Total Part Build Rating . | . . . . . Parts Repaired . | . . . . . Time . | . . . . . Parts Recycled . | . . . . . Recycled Matter . | . . . . . Retrieved Matter . | . . . . . Retrieved Components . | . . . . . Parts Scanalyzed . | . . . . . Part Schematics Acquired . | . . . . . Parts Damaged . | . . . . . Bothacking | -11 -10 -10 -10 -9 ------------ Run | Yrd Mat Min Exi Min Used RIF Installer . | . . . . . Robots Hacked . | . . . . . Non-combat . | . . . . . Combat . | . . . . . Robot Hacks Applied . | . . . . . Relay Couplers Released . | . . . . . Fabnet Peak Effective % . | . . . . . Robots Rewired . | . . . . . Allies Hacked . | . . . . . Hacks Repelled . | . . . . . Allies | -11 -10 -10 -10 -9 -------- Run | Yrd Mat Min Exi Min Total Allies . | . . . . . Largest Group . | . . . . . Highest-Rated Group . | . . . . . Highest-Rated Ally . | . . . . . Total Orders . | . . . . . Ally Attacks . | . . . . . Total Damage . | . . . . . Kills . | . . . . . Allies Corrupted . | . . . . . Allies Melted . | . . . . . Intel | -11 -10 -10 -10 -9 ------- Run | Yrd Mat Min Exi Min Robot Analysis Total . | . . . . . Derelict Logs Recovered 2 | . . 1 . 1 Drone Launches . | . . . . . Drone Recoveries . | . . . . . Exploration | -11 -10 -10 -10 -9 ------------- Run | Yrd Mat Min Exi Min Turns Passed 2548 | 81 314 619 1143 391 Spaces Moved 1280 | 50 169 340 601 120 Core 15 | 14 . . . 1 Treads 365 | 36 169 160 . . Legs 900 | . . 180 601 119 Wheels . | . . . . . Hover . | . . . . . Flight . | . . . . . Fastest Speed 50 | 50 160 160 190 190 Average Speed 181 | 129 160 175 190 205 Slowest Speed 500 | 160 160 190 190 500 Overloaded Moves . | . . . . . Propulsion Burnouts . | . . . . . Robots Hopped . | . . . . . Cave-ins Triggered . | . . . . . Exploration Rate (%) 42 | 4 28 66 90 26 Regions Visited 4 Branch Regions 3 Pre-discovered Areas 1 | . . . . 1 Known Exits Taken . | . . . . . Unknown Exits Taken 4 | 1 1 1 1 . Scrap Searched 3 | . . 1 . 2 Spaces Dug . | . . . . . Terrain Destroyed . | . . . . . Melee . | . . . . . Projectile . | . . . . . AOE . | . . . . . Terrain Rammed . | . . . . . Walls Destroyed . | . . . . . Machines Disabled . | . . . . . Actions | -11 -10 -10 -10 -9 --------- Run | Yrd Mat Min Exi Min Total 1434 | 67 192 353 603 219 Wait 57 | . . . . 57 Move 1276 | 49 168 339 600 120 Hop . | . . . . . Pick Up 23 | 12 4 4 1 2 Fast Attach . | . . . . . Attach 18 | 6 3 2 . 7 Detach 4 | . 1 2 . 1 Swap 3 | . 1 . 1 1 Drop 3 | . 2 . 1 . Fire 50 | . 13 6 . 31 Melee . | . . . . . Ram . | . . . . . Kick . | . . . . . Crush . | . . . . . Escape Stasis . | . . . . . Rewire . | . . . . . Trap . | . . . . . Miscellaneous . | . . . . . Route ------- -11/Scrapyard -10/Materials -10/Mines -10/Exiles (discovered 2 exits: [*Min x2]) -9/Mines History --------- Turn | Location | Event 4 | -11/Scrapyard | Discovered new exit (range 15) 82 | -11/Scrapyard | Entered Materials 289 | -10/Materials | Discovered new exit (range 15) 304 | -10/Materials | Build established: Mutant 396 | -10/Materials | Entered Mines 493 | -10/Mines | Received a Rocket Launcher from a helpful Derelict 1006 | -10/Mines | Deemed a non-threat by the Exiles lab entrance 1006 | -10/Mines | Discovered new exit (range 5) 1015 | -10/Mines | Entered Exiles 1058 | -10/Exiles | Discovered new exit (range 14) 1108 | -10/Exiles | Met 8R-AWN 1138 | -10/Exiles | Met EX-HEX 1212 | -10/Exiles | Met EX-DEC 1323 | -10/Exiles | Visited The Gauntlet 1619 | -10/Exiles | Discovered new exit (range 14) 1782 | -10/Exiles | Met EX-BIN 1820 | -10/Exiles | Aligned with FarCom system 1822 | -10/Exiles | Given EX-Vault access code 2158 | -10/Exiles | Entered Mines 2210 | -9/Mines | Met a Derelict bent on vengeance 2268 | -9/Mines | Assembled infested the area 2273 | -9/Mines | Assisted by a Guerilla fighting off Assembled 2415 | -9/Mines | Core integrity fell below 50% 2530 | -9/Mines | Lost 3 parts (1n1u1w) 2549 | -9/Mines | Core integrity fell below 20% 2549 | -9/Mines | Destroyed by D-53 Grenadier with Mini Grenade Launcher Last Messages --------------- Aluminum Leg destroyed. System corrupted by crushing effect (+5). Knocked back. System corrupted: Aluminum Leg rejected. System corrupted: Lgt. Assault Rifle jammed. Targeting Computer destroyed. Lgt. Assault Rifle destroyed. System corrupted by crushing effect (+2). System corrupted by crushing effect (+1). as-79682 destroyed. Acquired 1 matter. Acquired 10 matter. Acquired 7 matter. System corrupted: Energy discharge (-34). C-30 ARC bursts open, deploying its payload. D-53 Grenadier unfolds itself. EM Pulse Gun destroyed. Aluminum Leg destroyed. Lgt. Angular Momentum Engine destroyed. Map ----- +----------------------------------------------------+ | ?????????????????????????????????????????????????? | | ?????????????????????????????????????????????????? | | ?????????????????????????????????????????????????? | | ?????????????????????????????????????????????????? | | ?????????????????????????????????????????????????? | | ?????????????????????????????????????????????????? | | ?????????????????????????????????????????????????? | | ?????????????????????????????????????????????????? | | ?????????????????????????????????????????????????? | | ?????????????????????????????????????????????????? | | ?????????????????????????????????????????????????? | | ?????????????????????????????????????????????????? | | ?????????????????????????????????????????????????? | | ?????????????????????????????????????????????????? | | ?????????????????????????????????????????????????? | | ?????????????????????????????????????????????????? | | ?????????????????????????####????????????????????? | | ??????????????????????### ##??? ???????????????? | | ?????????????????????## ### ????????????????? | | ????????????????????## ?????????????????? | | ????????????###?##### ???????????????????? | | ???????????## ## ##???????????????????? | | ???????????# ##??????????????????? | | ???????????#< #??????????????????? | | ???????????# #??????????????????? | | ????????????# d @ #??????????????????? | | ?????????????# d #??????????????????? | | ?????????????## = #??????????????????? | | ??????????????# ##??????????????????? | | ??????????????# # ##???????????????????? | | ??????????????# #######????????????????????? | | ??????????????### #?????????????????????????? | | ????????????????#% # #????????????????????????? | | ???????????????## %## ????????????????????? | | #####???####?## #%%"##### ?????????????????? | | # ##?## ### ##%%#####?######??????????????????? | | % ### #"#%%!%" #?????????????????????????? | | % !=% %%%!%|######????????????????????????? | | # %=%%!%*%=%" #???????????????????? | | # ## *####"%#"##########?????????????????????? | | # ### ##??##### ?????????????????????????????? | | # #?# ##???????? ????????????????????????????? | | % ## #????????? ???????????????????????????? | | #### #????????? ? ##??????????????????????????? | | ???# ????????? ?#???????????????????????????? | | ???## ???????? #?????????????????????????????? | | ????## ??????? #?????????????????????????????? | | ?????# ?????? ?????????????????????????????? | | ?????# ?????? ?????????????????????????????? | | ?????## #### ????? ?????????????????????????????? | +----------------------------------------------------+ Best States ------------- Heat Dissipation 25 Energy Generation 18 Energy Capacity 150 Matter Stores 300 Matter Capacity 300 Sight Range 16 Terrain Scan Density 10 Evasion (%) 50 Targeting Accuracy 5 Recoil Reduction 2 Item Schematics ----------------- None Robot Schematics ------------------ None Fabricated ------------ Nothing Alien Tech Used ----------------- None Achievements -------------- Tourist Challenges ------------ None Game ------ Seed MetafiberBlastAxe Manual? 0 Play Time 00:20:37 Cumulative 1.8 hours Start 2024.12.14 @ 20:28:41 End 2024.12.14 @ 20:48:34 Sessions 1 Manual Loads 0 Difficulty Rogue Special Mode None Game No. 4 Rogue 1 Adventurer 3 Explorer 0 Win Type - Total 0 Types 0/0/0/0/0/0/0/0/0 Lore% 3 Gallery% 5 Achievement% 6 Wizard Run 0 Options --------- Layout 1 ASCII 0 Keyboard 0 Movement Mouse Keybinds 0 Fullscreen 1 Font 24/Smallcaps Map View 50x35 Zoom Use 0% Tactical HUD 0 Map Filters NONE Filters NONE Steam 1 RUN: 5f28c6b8-f734-4536-aa93-b9043e5b8a5d